bitfinex/quotes_BTCUSD_20240828
["timestamp","ask_amount","ask_price","bid_price","bid_amount"]
[1724889035720,1.73637863,59279.0,59278.0,0.0078998]
[1724889035937,1.73637863,59279.0,59278.0,0.0088998]
[1724889036795,1.7628287,59279.0,59278.0,0.0088998]
[1724889037209,1.7628287,59279.0,59278.0,0.0018998]
[1724889037432,1.7638287,59279.0,59278.0,0.0018998]
[1724889037636,1.7638287,59279.0,59278.0,0.0008998]
[1724889037841,1.73737863,59279.0,59278.0,0.0018998]
[1724889039146,1.62565882,59279.0,59278.0,0.0018998]
[1724889039361,1.62565882,59279.0,59278.0,0.0648998]
[1724889039627,1.74379645,59279.0,59278.0,0.0648998]
[1724889040015,1.77024536,59279.0,59278.0,0.0648998]
[1724889043638,1.74379645,59279.0,59278.0,0.0648998]
[1724889044234,1.91234809,59279.0,59278.0,0.0648998]
[1724889044427,1.79549645,59279.0,59278.0,0.0018998]
[1724889044650,1.74379645,59279.0,59278.0,0.0018998]
[1724889045633,1.74379645,59279.0,59278.0,0.0812998]
[1724889046919,1.77024622,59279.0,59278.0,0.0812998]
[1724889053579,1.74379645,59279.0,59278.0,0.0812998]
[1724889055136,1.74379645,59279.0,59278.0,0.1424998]
[1724889056777,1.28827182,59279.0,59278.0,0.1424998]
[1724889056985,1.40640945,59279.0,59278.0,0.1424998]
[1724889057871,1.40540945,59279.0,59278.0,0.1424998]
[1724889058276,1.40540945,59279.0,59278.0,0.1414998]
[1724889058699,1.40540945,59279.0,59278.0,0.1434998]
[1724889059975,1.43185866,59279.0,59278.0,0.1434998]
[1724889061407,1.43185866,59279.0,59278.0,0.0028998]
[1724889062089,1.48355866,59279.0,59278.0,0.0028998]
[1724889062778,1.43185866,59279.0,59278.0,0.0028998]
[1724889062977,1.76924566,59279.0,59278.0,0.0028998]
[1724889063598,1.74279645,59279.0,59278.0,0.0028998]
[1724889063803,1.74379645,59279.0,59278.0,0.0028998]
[1724889064005,1.74379645,59279.0,59278.0,0.0008998]
[1724889064456,1.74279645,59279.0,59278.0,0.0008998]
[1724889064659,1.74379645,59279.0,59278.0,0.0008998]
[1724889065293,1.74279645,59279.0,59278.0,0.0008998]
[1724889065532,1.74479645,59279.0,59278.0,0.0008998]
[1724889065732,1.74279645,59279.0,59278.0,0.0008998]
[1724889066145,1.74679645,59279.0,59278.0,0.0008998]
[1724889066616,1.74879645,59279.0,59278.0,0.0008998]
[1724889066833,1.7792469,59279.0,59278.0,0.0008998]
[1724889067249,1.7752469,59279.0,59278.0,0.0008998]
[1724889067670,1.7782469,59279.0,59278.0,0.0008998]
[1724889070224,2.33778554,59279.0,59278.0,0.0008998]
[1724889070430,2.40674445,59279.0,59278.0,0.0008998]
[1724889070661,2.45844445,59279.0,59278.0,0.0008998]
[1724889072357,2.40648554,59279.0,59278.0,0.0008998]
[1724889073483,2.38003509,59279.0,59278.0,0.0008998]
[1724889074327,2.40668142,59279.0,59278.0,0.0008998]
[1724889076860,2.43313478,59279.0,59278.0,0.0008998]
[1724889078154,2.26458314,59279.0,59278.0,0.0008998]
[1724889078573,1.68675851,59279.0,59278.0,0.0808998]
[1724889078788,1.80489614,59279.0,59278.0,0.0791002]
[1724889079000,1.78344278,59279.0,59278.0,0.0791002]
[1724889079429,1.77744278,59279.0,59278.0,0.0791002]
[1724889079841,1.77944278,59279.0,59278.0,0.0791002]
[1724889080047,1.65630515,59279.0,59278.0,0.0791002]
[1724889080281,1.65330515,59279.0,59278.0,0.0791002]
[1724889080463,1.68375575,59279.0,59278.0,0.0791002]
[1724889081018,1.67975575,59279.0,59278.0,0.0791002]
[1724889081224,1.68575575,59279.0,59278.0,0.0791002]
[1724889081643,1.68175575,59279.0,59278.0,0.0791002]
[1724889081844,1.67775575,59279.0,59278.0,0.0791002]
[1724889082096,1.68375575,59279.0,59278.0,0.1401002]
[1724889082645,1.34636875,59279.0,59278.0,0.1401002]
[1724889083523,1.31591815,59279.0,59278.0,0.1401002]
[1724889083819,1.31791815,59279.0,59278.0,0.1401002]
[1724889083993,1.31591815,59279.0,59278.0,0.1401002]
[1724889084429,1.31391815,59279.0,59278.0,0.1401002]
[1724889084693,1.31391815,59279.0,59278.0,0.002]
[1724889084899,1.36587706,59279.0,59278.0,0.002]
[1724889085134,1.75496406,59279.0,59278.0,0.002]
[1724889085980,1.75596406,59279.0,59278.0,0.002]
[1724889086196,1.70800515,59279.0,59278.0,0.002]
[1724889086416,1.8364261,59279.0,59278.0,0.002]
[1724889086624,1.185893,59277.0,59275.0,0.0008987]
[1724889086832,1.285893,59277.0,59275.0,0.0008987]
[1724889087163,1.623291,59277.0,59275.0,0.0008987]
[1724889087786,1.618291,59277.0,59275.0,0.0008987]
[1724889087981,1.618291,59277.0,59276.0,0.1380998]
[1724889088188,1.623291,59277.0,59276.0,0.1380998]
[1724889088763,1.65374158,59277.0,59276.0,0.1380998]
[1724889088913,1.64874158,59277.0,59276.0,0.1380998]
[1724889089394,1.65074158,59277.0,59276.0,0.1380998]
[1724889089825,1.65574158,59277.0,59276.0,0.1380998]
[1724889093712,1.627291,59277.0,59276.0,0.1380998]
[1724889093917,1.623291,59277.0,59276.0,0.1380998]
[1724889094118,1.626291,59277.0,59276.0,0.1380998]
[1724889097397,1.30958294,59277.0,59276.0,0.1380998]
[1724889098109,1.64698094,59277.0,59276.0,0.1380998]
[1724889099106,1.64198094,59277.0,59276.0,0.1380998]
[1724889099331,1.30458294,59277.0,59276.0,0.1380998]
[1724889099961,1.33103321,59277.0,59276.0,0.1380998]
[1724889100164,1.44938736,59277.0,59276.0,0.1380998]
[1724889100295,1.44838736,59277.0,59276.0,0.1380998]
[1724889100521,1.44638736,59277.0,59276.0,0.1380998]
[1724889100702,1.44638736,59277.0,59276.0,0.1390998]
[1724889100901,1.44638736,59277.0,59276.0,0.1380998]
[1724889101304,1.44638736,59277.0,59276.0,0.1410998]
[1724889101507,1.44638736,59277.0,59276.0,0.1420998]
[1724889103161,1.78378536,59277.0,59276.0,0.1420998]
[1724889103427,1.41993709,59277.0,59276.0,0.1420998]
[1724889103993,1.75733509,59277.0,59276.0,0.1420998]
[1724889107992,1.75733509,59277.0,59276.0,0.1410998]
[1724889108266,1.75833509,59277.0,59276.0,0.1410998]
[1724889109357,1.75833509,59277.0,59276.0,0.1380998]
[1724889109860,1.78478572,59277.0,59276.0,0.1380998]
[1724889111424,2.12800172,59277.0,59276.0,0.0008998]
[1724889111628,1.79060372,59277.0,59276.0,0.0008998]
[1724889112716,1.78960372,59277.0,59276.0,0.0008998]
[1724889113516,1.76415309,59277.0,59276.0,0.0008998]
[1724889114629,2.20775109,59277.0,59276.0,0.0008998]
[1724889114839,2.20975109,59277.0,59276.0,0.0008998]
[1724889115034,1.87235309,59277.0,59276.0,0.0008998]
[1724889115259,1.76415309,59277.0,59276.0,0.0008998]
[1724889115955,2.10155109,59277.0,59276.0,0.0008998]
[1724889116136,2.10355109,59277.0,59276.0,0.0008998]
[1724889116692,1.523318,59276.0,59275.0,0.0008987]
[1724889116891,1.623318,59276.0,59275.0,0.0008987]
[1724889117400,1.960722,59276.0,59275.0,0.0008987]
[1724889119780,1.960722,59276.0,59275.0,0.0018987]
[1724889119968,1.98717384,59276.0,59275.0,0.0008987]
[1724889120349,1.98817384,59276.0,59275.0,0.0008987]
[1724889120566,1.99017384,59276.0,59275.0,0.0008987]
[1724889121916,1.98517384,59276.0,59275.0,0.0008987]
[1724889122312,2.11166322,59276.0,59275.0,0.0008987]
[1724889123254,1.98517384,59276.0,59275.0,0.0008987]
[1724889123694,1.958722,59276.0,59275.0,0.0008987]
[1724889123893,1.963722,59276.0,59275.0,0.0008987]
[1724889124296,1.73967215,59276.0,59275.0,0.0817987]
[1724889124516,1.73967215,59276.0,59275.0,0.1427987]
[1724889126834,1.76612369,59276.0,59275.0,0.1427987]
[1724889128628,1.78847896,59276.0,59275.0,0.1427987]
[1724889129626,1.76202742,59276.0,59275.0,0.1427987]
[1724889129853,1.78847897,59276.0,59275.0,0.1427987]
[1724889130049,2.12588297,59276.0,59275.0,0.1427987]
[1724889130255,1.78847897,59276.0,59275.0,0.1427987]
[1724889130813,2.12588297,59276.0,59275.0,0.1427987]
[1724889131364,2.12588297,59276.0,59275.0,0.0008987]
[1724889133620,2.09943142,59276.0,59275.0,0.0008987]
[1724889136378,2.10024942,59276.0,59275.0,0.0008987]
[1724889136832,2.12670104,59276.0,59275.0,0.0008987]
[1724889138649,2.25318496,59276.0,59275.0,0.0008987]
[1724889139453,2.12670104,59276.0,59275.0,0.0008987]
[1724889139827,2.25318994,59276.0,59275.0,0.0008987]
[1724889142336,2.26018994,59276.0,59275.0,0.0008987]
[1724889142537,2.26018994,59276.0,59270.0,0.081698]
[1724889142538,0.002,59271.0,59270.0,0.081698]
[1724889142780,0.002,59271.0,59270.0,9.8e-05]
[1724889142781,0.62650315,59271.0,59270.0,9.8e-05]
[1724889142951,1.06393615,59271.0,59270.0,9.8e-05]
[1724889143117,2.07623515,59271.0,59270.0,9.8e-05]
[1724889143319,2.20072842,59271.0,59270.0,9.8e-05]
[1724889143534,2.07423515,59271.0,59270.0,9.8e-05]
[1724889143941,2.08235616,59271.0,59270.0,0.089698]
[1724889144137,2.07423515,59271.0,59270.0,0.153398]
[1724889144357,2.07423515,59271.0,59270.0,0.145398]
[1724889144925,2.0818403,59271.0,59270.0,0.145398]
[1724889146270,1.7444073,59271.0,59270.0,0.145398]
[1724889149085,1.7444073,59271.0,59270.0,0.1462978]
[1724889149876,1.77086011,59271.0,59270.0,0.1462978]
[1724889153602,1.28862015,59271.0,59270.0,0.1462978]
[1724889153819,0.85118715,59271.0,59270.0,0.1462978]
[1724889154428,0.85018715,59271.0,59270.0,0.1462978]
[1724889155035,0.95018715,59271.0,59270.0,0.1462978]
[1724889155657,0.95118715,59271.0,59270.0,0.1592978]
[1724889156353,1.0695413,59271.0,59270.0,0.1592978]
[1724889156647,1.0705413,59271.0,59270.0,0.1702978]
[1724889157078,1.4079743,59271.0,59270.0,0.1702978]
[1724889157815,1.28962015,59271.0,59270.0,0.1702978]
[1724889158027,1.181351,59254.0,59253.0,0.0604]
[1724889158226,1.74052778,59254.0,59253.0,0.0604]
[1724889158425,1.84052778,59254.0,59253.0,0.08173476]
[1724889158641,1.84052778,59254.0,59251.0,0.0799]
[1724889158642,1.181393,59252.0,59251.0,0.0799]
[1724889158836,0.506337,59249.0,59248.0,0.008998]
[1724889159002,1.39980715,59249.0,59248.0,0.008998]
[1724889159220,1.73736515,59249.0,59248.0,0.008998]
[1724889159423,1.76382611,59249.0,59248.0,0.008998]
[1724889160105,1.94165772,59249.0,59248.0,0.008998]
[1724889160337,1.94165772,59249.0,59248.0,0.012998]
[1724889161004,1.94165772,59249.0,59248.0,0.014998]
[1724889162578,1.94165772,59249.0,59248.0,0.008998]
[1724889162808,1.94365772,59249.0,59248.0,0.008998]
[1724889163041,1.94365772,59249.0,59248.0,0.009998]
[1724889163042,2.44976736,59249.0,59248.0,0.009998]
[1724889163242,2.1535816,59249.0,59248.0,0.008998]
[1724889163472,2.1535816,59249.0,59248.0,0.010998]
[1724889163473,2.12712064,59249.0,59248.0,0.010998]
[1724889163699,2.12812064,59249.0,59248.0,0.010998]
[1724889164136,2.12712064,59249.0,59248.0,0.010998]
[1724889164761,2.23317952,59249.0,59248.0,0.008998]
[1724889165011,2.23817952,59249.0,59248.0,0.008998]
[1724889165217,2.23917952,59249.0,59248.0,0.008998]
[1724889165361,2.23817952,59249.0,59248.0,0.008998]
[1724889165766,2.24217952,59249.0,59248.0,0.008998]
[1724889166169,2.23717952,59249.0,59248.0,0.008998]
[1724889166605,2.24117952,59249.0,59248.0,0.008998]
[1724889166810,2.26764343,59249.0,59248.0,0.008998]
[1724889168767,2.61020143,59249.0,59248.0,0.008998]
[1724889169411,2.61020143,59249.0,59242.0,0.0785]
[1724889169629,1.519474,59231.0,59211.0,0.4768]
[1724889169834,1.519474,59231.0,59214.0,0.067699]
[1724889170036,1.72539955,59231.0,59230.0,0.148998]
[1724889170255,1.7518686,59231.0,59230.0,0.148998]
[1724889171565,1.7528686,59231.0,59230.0,0.149998]
[1724889172033,1.7528686,59231.0,59230.0,0.148998]
[1724889172435,1.7528686,59231.0,59230.0,0.149998]
[1724889172635,2.04905436,59231.0,59230.0,0.149998]
[1724889173606,2.02258531,59231.0,59230.0,0.149998]
[1724889176433,1.91665976,59231.0,59230.0,0.149998]
[1724889177872,2.02258531,59231.0,59230.0,0.149998]
[1724889178979,2.02258531,59231.0,59230.0,0.086698]
[1724889178980,2.36024631,59231.0,59230.0,0.086698]
[1724889179427,2.36024631,59231.0,59230.0,0.009998]
[1724889180015,2.3867163,59231.0,59230.0,0.009998]
[1724889180886,2.7293773,59231.0,59230.0,0.009998]
[1724889181088,2.78105579,59231.0,59230.0,0.009998]
[1724889181289,2.78105579,59231.0,59223.0,0.0663]
[1724889181290,1.857416,59222.0,59221.0,0.0775]
[1724889181496,1.957416,59222.0,59221.0,0.0775]
[1724889181698,1.51978,59219.0,59217.0,0.0811]
[1724889181919,1.61978,59219.0,59217.0,0.0811]
[1724889182126,1.72570555,59219.0,59217.0,0.0811]
[1724889182515,1.61978,59219.0,59217.0,0.0811]
[1724889184133,1.62078,59219.0,59218.0,0.010998]
[1724889184383,1.62178,59219.0,59218.0,0.015998]
[1724889184592,1.62178,59219.0,59218.0,0.162798]
[1724889186776,1.64825362,59219.0,59218.0,0.162798]
[1724889187243,1.62178,59219.0,59218.0,0.162798]
[1724889189801,1.64825359,59219.0,59218.0,0.162798]
[1724889192525,1.65494176,59219.0,59218.0,0.162798]
[1724889193509,1.62846817,59219.0,59218.0,0.162798]
[1724889194025,1.90294536,59219.0,59218.0,0.162798]
[1724889194225,1.73439372,59219.0,59218.0,0.162798]
[1724889194831,1.62846817,59219.0,59218.0,0.162798]
[1724889195415,1.73339372,59219.0,59218.0,0.160798]
[1724889195616,1.73439372,59219.0,59218.0,0.160798]
[1724889195857,1.73339372,59219.0,59218.0,0.155798]
[1724889196238,1.73439372,59219.0,59218.0,0.155798]
[1724889196772,1.75986855,59219.0,59218.0,0.155798]
[1724889197215,1.76086855,59219.0,59218.0,0.155798]
[1724889199611,2.07212272,59219.0,59218.0,0.155798]
[1724889199808,2.07212272,59219.0,59218.0,0.008998]
[1724889200513,2.24067436,59219.0,59218.0,0.008998]
[1724889201850,2.29235285,59219.0,59218.0,0.008998]
[1724889202265,2.12380121,59219.0,59218.0,0.008998]
[1724889202457,2.46153021,59219.0,59218.0,0.008998]
[1724889202973,2.0443519,59219.0,59218.0,0.086998]
[1724889203174,1.99267341,59219.0,59218.0,0.149598]
[1724889203736,2.02636521,59219.0,59218.0,0.149598]
[1724889204164,2.13229076,59219.0,59218.0,0.149598]
[1724889204736,2.13229076,59219.0,59218.0,0.008998]
[1724889206573,2.10581452,59219.0,59218.0,0.008998]
[1724889209761,2.13229043,59219.0,59218.0,0.008998]
[1724889212542,2.10581452,59219.0,59218.0,0.008998]
[1724889212773,2.21201452,59219.0,59218.0,0.008998]
[1724889214113,0.005,59216.0,59215.0,0.008998]
[1724889214317,0.27979855,59216.0,59215.0,0.008998]
[1724889214565,1.10696904,59216.0,59215.0,0.008998]
[1724889214767,1.78246104,59216.0,59215.0,0.008998]
[1724889215001,2.55841742,59216.0,59215.0,0.008998]
[1724889215210,2.55841742,59216.0,59210.0,0.156098]
[1724889215211,1.519987,59211.0,59210.0,0.156098]
[1724889215549,1.519987,59211.0,59202.0,0.081]
[1724889215550,0.33782,59203.0,59202.0,0.081]
[1724889215766,1.81637576,59203.0,59202.0,0.081]
[1724889215923,2.0739798,59203.0,59202.0,0.10256245]
[1724889216128,2.4117998,59203.0,59202.0,0.081]
[1724889217559,2.4157998,59203.0,59202.0,0.081]
[1724889217742,2.4117998,59203.0,59202.0,0.081]
[1724889218149,2.4157998,59203.0,59202.0,0.081]
[1724889218380,1.520244,59201.0,59200.0,0.0661]
[1724889218549,1.67192249,59201.0,59200.0,0.0661]
[1724889218865,2.14216291,59201.0,59200.0,0.0661]
[1724889219652,2.14316291,59201.0,59200.0,0.0661]
[1724889220658,2.14516291,59201.0,59200.0,0.0661]
[1724889223557,2.11868004,59201.0,59200.0,0.0661]
[1724889224833,1.67492249,59201.0,59200.0,0.0661]
[1724889225034,1.623244,59201.0,59200.0,0.1433]
[1724889225234,2.02535531,59201.0,59200.0,0.1433]
[1724889225436,2.36318731,59201.0,59200.0,0.1433]
[1724889225640,2.0770338,59201.0,59200.0,0.1433]
[1724889225946,2.0740338,59201.0,59200.0,0.1433]
[1724889226298,2.0770338,59201.0,59200.0,0.1433]
[1724889226899,2.4158658,59201.0,59200.0,0.1433]
[1724889227647,2.4138658,59201.0,59200.0,0.1433]
[1724889227855,2.4158658,59201.0,59200.0,0.1433]
[1724889228273,1.520473,59192.0,59188.0,0.008998]
[1724889228484,1.620473,59192.0,59188.0,0.008998]
[1724889228699,1.620473,59192.0,59191.0,0.1377]
[1724889229527,1.72839855,59192.0,59191.0,0.1527]
[1724889229889,1.75488336,59192.0,59191.0,0.1527]
[1724889230292,2.14344485,59192.0,59191.0,0.0084]
[1724889230498,2.48132785,59192.0,59191.0,0.0124]
[1724889230903,2.48032785,59192.0,59191.0,0.0044]
[1724889231130,2.3794023,59192.0,59191.0,0.0074]
[1724889231357,2.3794023,59192.0,59188.0,0.008998]
[1724889231358,2.19635,59189.0,59188.0,0.008998]
[1724889231719,2.34802849,59189.0,59188.0,0.008998]
[1724889232877,2.36502849,59189.0,59188.0,0.010998]
[1724889234004,2.47095404,59189.0,59188.0,0.010998]
[1724889234281,2.47595404,59189.0,59188.0,0.010998]
[1724889234504,2.64450568,59189.0,59188.0,0.010998]
[1724889236111,2.70100568,59189.0,59188.0,0.010998]
[1724889236314,2.99519144,59189.0,59188.0,0.010998]
[1724889236491,2.94069144,59189.0,59188.0,0.010998]
[1724889237738,2.96718207,59189.0,59188.0,0.010998]
[1724889240700,0.005,59188.0,59180.0,0.1437]
[1724889240910,0.506919,59181.0,59180.0,0.1437]
[1724889241118,0.606919,59181.0,59180.0,0.1437]
[1724889241332,1.958703,59181.0,59180.0,0.1437]
[1724889241757,1.985196,59181.0,59180.0,0.1437]
[1724889242357,2.323142,59181.0,59180.0,0.1437]
[1724889242910,2.323142,59181.0,59180.0,0.1447]
[1724889243339,2.323142,59181.0,59180.0,0.1437]
[1724889243516,2.327142,59181.0,59180.0,0.1437]
[1724889244798,2.331142,59181.0,59180.0,0.1437]
[1724889245034,2.327142,59181.0,59180.0,0.1437]
[1724889245203,2.323142,59181.0,59180.0,0.1437]
[1724889245405,2.327142,59181.0,59180.0,0.1437]
[1724889245671,2.323142,59181.0,59180.0,0.1437]
[1724889245866,2.49169364,59181.0,59180.0,0.1437]
[1724889246176,2.61446012,59181.0,59180.0,0.1437]
[1724889246705,2.61846012,59181.0,59180.0,0.1437]
[1724889248461,2.6251823,59181.0,59180.0,0.1437]
[1724889249666,2.5946893,59181.0,59180.0,0.1437]
[1724889250108,2.31037118,59181.0,59180.0,0.1451]
[1724889250321,1.97242518,59181.0,59180.0,0.1451]
[1724889250484,1.96542518,59181.0,59180.0,0.1451]
[1724889250667,1.97242518,59181.0,59180.0,0.1451]
[1724889251067,1.97942518,59181.0,59180.0,0.1451]
[1724889251491,2.09119166,59181.0,59180.0,0.1451]
[1724889252831,1.74624566,59181.0,59180.0,0.1451]
[1724889253063,1.78373792,59181.0,59180.0,0.1451]
[1724889253301,1.77673792,59181.0,59180.0,0.1451]
[1724889253739,1.78073792,59181.0,59180.0,0.1451]
[1724889256350,2.28723556,59181.0,59180.0,0.1459998]
[1724889256585,2.09219166,59181.0,59180.0,0.1459998]
[1724889259915,2.11868371,59181.0,59180.0,0.1459998]
[1724889262835,1.66197123,59181.0,59180.0,0.1459998]
[1724889263246,1.78073771,59181.0,59180.0,0.1459998]
[1724889263452,1.75424566,59181.0,59180.0,0.1459998]
[1724889264328,1.74624566,59181.0,59180.0,0.1459998]
[1724889265690,1.74724566,59181.0,59180.0,0.1459998]
[1724889266288,1.74624566,59181.0,59180.0,0.1459998]
[1724889266793,1.77273789,59181.0,59180.0,0.1459998]
[1724889268078,2.11068389,59181.0,59180.0,0.1459998]
[1724889269348,1.65397141,59181.0,59180.0,0.1459998]
[1724889269561,1.77473789,59181.0,59180.0,0.1459998]
[1724889269761,1.77573789,59181.0,59180.0,0.1459998]
[1724889270172,1.65497141,59181.0,59180.0,0.1459998]
[1724889270368,1.65697141,59181.0,59180.0,0.1459998]
[1724889270818,1.65597141,59181.0,59180.0,0.1459998]
[1724889271902,1.65397141,59181.0,59180.0,0.1459998]
[1724889272245,1.65497141,59181.0,59180.0,0.1459998]
[1724889272444,1.99291741,59181.0,59180.0,0.1459998]
[1724889272700,2.16146905,59181.0,59180.0,0.0804998]
[1724889272937,1.99291741,59181.0,59180.0,0.0804998]
[1724889273524,1.96542518,59181.0,59180.0,0.0804998]
[1724889273938,1.96842518,59181.0,59180.0,0.0804998]
[1724889274357,1.97142518,59181.0,59180.0,0.0804998]
[1724889274492,1.97142518,59181.0,59180.0,0.08072813]
[1724889275558,2.09760209,59181.0,59180.0,0.08072813]
[1724889275920,1.97142518,59181.0,59180.0,0.08072813]
[1724889276035,2.09760209,59181.0,59180.0,0.08072813]
[1724889276241,1.97142518,59181.0,59180.0,0.08072813]
[1724889276850,1.99791765,59181.0,59180.0,0.08072813]
[1724889278724,1.49099865,59181.0,59180.0,0.08072813]
[1724889279492,1.99791765,59181.0,59180.0,0.08072813]
[1724889280757,1.65997165,59181.0,59180.0,0.14362813]
[1724889281608,1.65697165,59181.0,59180.0,0.14362813]
[1724889281992,1.66197165,59181.0,59180.0,0.14362813]
[1724889282194,1.65697165,59181.0,59180.0,0.14362813]
[1724889282500,1.65397165,59181.0,59180.0,0.14362813]
[1724889282946,1.65897165,59181.0,59180.0,0.14362813]
[1724889283299,1.65397165,59181.0,59180.0,0.14362813]
[1724889283506,1.62747918,59181.0,59180.0,0.14362813]
[1724889283714,1.62847918,59181.0,59180.0,0.14362813]
[1724889285163,1.62747918,59181.0,59180.0,0.14362813]
[1724889285629,1.62847918,59181.0,59180.0,0.14362813]
[1724889288680,1.65497115,59181.0,59180.0,0.14362813]
[1724889289413,1.99291715,59181.0,59180.0,0.14362813]
[1724889289863,1.65497115,59181.0,59180.0,0.14362813]
[1724889290004,1.65497115,59181.0,59180.0,0.14362814]
[1724889290443,1.65397115,59181.0,59180.0,0.14362814]
[1724889292121,1.77268788,59181.0,59180.0,0.14362814]
[1724889292310,1.77350588,59181.0,59180.0,0.14362814]
[1724889297665,1.21684315,59181.0,59180.0,0.14362814]
[1724889298282,1.19035118,59181.0,59180.0,0.14362814]
[1724889299462,1.29035118,59181.0,59180.0,0.14362814]
[1724889301098,1.29035118,59181.0,59180.0,0.14362815]
[1724889301443,1.31684025,59181.0,59180.0,0.14362815]
[1724889309748,1.65478625,59181.0,59180.0,0.14362815]
[1724889310283,1.62829718,59181.0,59180.0,0.08072815]
[1724889313415,1.65478822,59181.0,59180.0,0.08072815]
[1724889316551,1.62829718,59181.0,59180.0,0.08072815]
[1724889319098,2.41038918,59181.0,59180.0,0.00112815]
[1724889320561,2.41638918,59181.0,59180.0,0.00112815]
[1724889321389,2.08344318,59181.0,59180.0,0.00112815]
[1724889321890,2.07844318,59181.0,59180.0,0.00112815]
[1724889322364,2.42238918,59181.0,59180.0,0.00112815]
[1724889322481,2.08444318,59181.0,59180.0,0.00112815]
[1724889322685,2.11093673,59181.0,59180.0,0.00112815]
[1724889323121,2.10493673,59181.0,59180.0,0.00112815]
[1724889323543,2.10593673,59181.0,59180.0,0.00112815]
[1724889324154,2.23170087,59181.0,59180.0,0.00112815]
[1724889324585,2.11293673,59181.0,59180.0,0.00112815]
[1724889324759,2.23170087,59181.0,59180.0,0.00112815]
[1724889326505,2.20520732,59181.0,59180.0,0.00112815]
[1724889326736,1.98024318,59181.0,59180.0,0.00112815]
[1724889326962,2.09900732,59181.0,59180.0,0.07942815]
[1724889328102,1.98024318,59181.0,59180.0,0.07942815]
[1724889329712,2.00673595,59181.0,59180.0,0.07942815]
[1724889333625,1.98024318,59181.0,59180.0,0.07942815]
[1724889335249,2.03194318,59181.0,59180.0,0.00112815]
[1724889335457,2.08644318,59181.0,59180.0,0.00112815]
[1724889336803,2.42438918,59181.0,59180.0,0.00112815]
[1724889336939,2.08644318,59181.0,59180.0,0.00112815]
[1724889339884,2.11293714,59181.0,59180.0,0.00112815]
[1724889340687,2.45088314,59181.0,59180.0,0.00112815]
[1724889341601,2.20198,59172.0,59171.0,1e-06]
[1724889341751,0.80883167,59170.0,59169.0,0.0004117]
[1724889341952,0.80883167,59170.0,59161.0,0.0772]
[1724889341953,1.183189,59162.0,59161.0,0.0772]
[1724889342160,2.25611567,59162.0,59161.0,0.0772]
[1724889342380,2.42466731,59162.0,59161.0,0.0772]
[1724889342579,2.42466731,59162.0,59156.0,0.0003]
[1724889342580,1.183248,59159.0,59158.0,0.149809]
[1724889342788,1.621319,59159.0,59158.0,0.149809]
[1724889342988,1.95939,59159.0,59158.0,0.149809]
[1724889343550,1.98589145,59159.0,59158.0,0.149809]
[1724889343997,1.98889145,59159.0,59158.0,0.149809]
[1724889344172,2.32696245,59159.0,59158.0,0.009009]
[1724889344375,2.46801264,59159.0,59158.0,0.009009]
[1724889344604,2.46901264,59159.0,59158.0,0.009009]
[1724889344813,2.300461,59159.0,59158.0,0.009009]
[1724889345479,2.30700247,59159.0,59158.0,0.009009]
[1724889345859,2.43478614,59159.0,59158.0,0.009009]
[1724889346055,2.43478614,59159.0,59142.0,0.009009]
[1724889346056,1.81855167,59143.0,59142.0,0.009009]
[1724889346590,2.25671467,59143.0,59142.0,0.092109]
[1724889347445,2.26971467,59143.0,59142.0,0.092109]
[1724889348039,2.27571467,59143.0,59142.0,0.092109]
[1724889348634,2.28171467,59143.0,59142.0,0.092109]
[1724889348852,2.2884823,59143.0,59142.0,0.009009]
[1724889349063,2.8566198,59143.0,59142.0,0.009009]
[1724889349180,2.7504198,59143.0,59142.0,0.009009]
[1724889349386,2.6316453,59143.0,59142.0,0.009009]
[1724889350014,2.6066453,59143.0,59142.0,0.009009]
[1724889350217,2.6196453,59143.0,59142.0,0.009009]
[1724889350471,2.6326453,59143.0,59142.0,0.009009]
[1724889350667,2.6196453,59143.0,59142.0,0.009009]
[1724889350975,2.63315729,59143.0,59142.0,0.009009]
[1724889351190,2.65515729,59143.0,59142.0,0.009009]
[1724889351414,2.64415729,59143.0,59142.0,0.009009]
[1724889351629,2.63315729,59143.0,59142.0,0.009009]
[1724889351825,2.64415729,59143.0,59142.0,0.009009]
[1724889352102,2.65515729,59143.0,59142.0,0.009009]
[1724889353250,2.66615729,59143.0,59142.0,0.009009]
[1724889353453,2.72322806,59143.0,59142.0,0.009009]
[1724889353667,2.71222806,59143.0,59142.0,0.009009]
[1724889354265,2.72322806,59143.0,59142.0,0.009009]
[1724889354507,2.71222806,59143.0,59142.0,0.009009]
[1724889354918,2.72322806,59143.0,59142.0,0.009009]
[1724889356786,2.68571607,59143.0,59142.0,0.009009]
[1724889357162,2.67371607,59143.0,59142.0,0.009009]
[1724889357504,2.68371607,59143.0,59142.0,0.009009]
[1724889359339,2.6266453,59143.0,59142.0,0.009009]
[1724889361013,2.65315817,59143.0,59142.0,0.009009]
[1724889361185,2.71022894,59143.0,59142.0,0.009009]
[1724889362683,2.77077999,59143.0,59142.0,0.009009]
[1724889363325,2.82527999,59143.0,59142.0,0.009009]
[1724889363756,2.76472894,59143.0,59142.0,0.009009]
[1724889363960,2.81642894,59143.0,59142.0,0.009009]
[1724889364187,2.78991607,59143.0,59142.0,0.009009]
[1724889365710,2.68371607,59143.0,59142.0,0.009009]
[1724889366346,2.68571607,59143.0,59142.0,0.009009]
[1724889366704,2.66571607,59143.0,59142.0,0.009009]
[1724889366914,2.66371607,59143.0,59142.0,0.009009]
[1724889367084,2.78116038,59143.0,59142.0,0.009009]
[1724889367430,2.8076731,59143.0,59142.0,0.009009]
[1724889367667,2.7976731,59143.0,59142.0,0.009009]
[1724889367867,2.7876731,59143.0,59142.0,0.009009]
[1724889368083,2.8136731,59143.0,59142.0,0.009009]
[1724889368463,2.7876731,59143.0,59142.0,0.009009]
[1724889368642,2.8036731,59143.0,59142.0,0.009009]
[1724889369854,2.8016731,59143.0,59142.0,0.009009]
[1724889370048,2.8156731,59143.0,59142.0,0.009009]
[1724889371563,2.71822879,59143.0,59142.0,0.009009]
[1724889372607,0.512321,59134.0,59133.0,0.0608]
[1724889372811,0.80913967,59134.0,59133.0,0.0608]
[1724889372977,1.14735367,59134.0,59133.0,0.0608]
[1724889373180,1.27386848,59134.0,59133.0,0.1426]
[1724889373402,2.28851048,59134.0,59133.0,0.1426]
[1724889373627,2.26199567,59134.0,59133.0,0.1426]
[1724889373840,2.26499567,59134.0,59133.0,0.1426]
[1724889374631,2.26099567,59134.0,59133.0,0.1426]
[1724889375053,2.26799567,59134.0,59133.0,0.1426]
[1724889375296,1.628963,59134.0,59133.0,0.1426]
[1724889376371,1.621963,59134.0,59133.0,0.1426]